Cogmind - Beta 11 X8 --- EXPLORER MODE // 2021.10.27 @ 14:04:33 // Winter2019/RPGLIKE Player: jfk Result: Destroyed by H-55 Commando with Gauss Rifle Performance ------------- Evolutions (2) 1000 Regions Visited (3) 600 Robots Destroyed (2) 10 Value Destroyed (20) 20 Prototype IDs (0) 0 Alien Tech Used (0) 0 Bonus (0) 0 TOTAL SCORE: 1630 Bonus ------- None Cogmind --------- Core Integrity 0/600 Matter 85/300 Energy 100/100 System Corruption 0% Temperature Cool (9) Movement Core (50) Location -8/Materials Parts ------- > --- POWER (1) -------- (None) > --- PROPULSION (1) --- (None) > --- UTILITY (1) ------ (None) > --- WEAPON (1) ------- Heavy Flail > --- INVENTORY (0) ---- (None) Peak State ------------ > --- POWER ------------ (None) > --- PROPULSION ------- (None) > --- UTILITY ---------- (None) > --- WEAPON ----------- Heavy Flail > --- INVENTORY -------- (None) [Rating: 3] Favorites ----------- Power None Propulsion None Utility None Weapon Heavy Flail Impact Weapon Heavy Flail Slashing Weapon Mining Claw Build | -11 -10 -9 -8 ------- Run | Scr Mat Mat Mat Slots Evolved . | . . . . Power . | . . . . Propulsion . | . . . . Utility . | . . . . Weapon . | . . . . Parts Attached 2 | . 1 1 . Power . | . . . . Engine . | . . . . Core . | . . . . Reactor . | . . . . Propulsion . | . . . . Treads . | . . . . Leg . | . . . . Wheel . | . . . . Hover . | . . . . Flight . | . . . . Utility . | . . . . Device . | . . . . Storage . | . . . . Processor . | . . . . Hackware . | . . . . Protection . | . . . . Artifact . | . . . . Weapon 2 | . 1 1 . Energy Gun . | . . . . Energy Cannon . | . . . . Ballistic Gun . | . . . . Ballistic Cannon . | . . . . Launcher . | . . . . Special Weapon . | . . . . Impact Weapon 1 | . . 1 . Slashing Weapon 1 | . 1 . . Piercing Weapon . | . . . . Special Melee Weapon . | . . . . Unidentified Prototypes . | . . . . Parts Lost . | . . . . Power . | . . . . Propulsion . | . . . . Utility . | . . . . Weapon . | . . . . Highest Loss Streak . | . . . . Average Slot Usage (%) 23 | . 12 25 25 Impact Weapon 13 | . . 13 25 Slashing Weapon 9 | . 12 11 . Naked Turns 22 | . 21 1 . Heaviest Build 3 | . 2 3 3 Greatest Support 3 | 3 3 3 3 Greatest Overweight (x) . | . . . . Average Overweight (x) . | . . . . Largest Inventory Capacity . | . . . . Average Capacity . | . . . . Most Carried . | . . . . Average Carried . | . . . . Final Capacity . | . . . . Final Carried . | . . . . Class Distribution -------------------- 100% | Hacker-Mutant Dominant Class ---------------- Hacker-Mutant | -10/Materials Hacker-Mutant | -9/Materials Hacker-Mutant | -8/Materials Resources | -11 -10 -9 -8 ----------- Run | Scr Mat Mat Mat Matter Collected . | . . . . Remotely . | . . . . Salvage Created 46 | . 46 . . Parts 4 | . 4 . . Haulers Intercepted . | . . . . Recyclers Shooed . | . . . . Parts Field Recycled . | . . . . Retrieved Matter . | . . . . Parts Self-Destructed . | . . . . Prevented . | . . . . Kills | -11 -10 -9 -8 ------- Run | Scr Mat Mat Mat Combat Hostiles Destroyed 2 | . 2 . . Melee 2 | . 2 . . Classes Destroyed 1 | . 1 . . Swarmer 2 | . 2 . . Best Kill Streak 2 | . 2 . . Combat Bots Only 2 | . 2 . . Max Kills in Single Turn 1 | . 1 . . Gunslinging . | . . . . Exploded . | . . . . Melee 1 | . 1 . . Uniques/NPCs Destroyed . | . . . . Combat | -11 -10 -9 -8 -------- Run | Scr Mat Mat Mat Damage Taken 635 | . 173 254 208 Core 610 | . 166 242 202 Absorbed by Shields . | . . . . Redirected to Core 78 | . 21 38 19 Core Remaining (%) 68 | 100 72 32 . Volleys Fired . | . . . . Largest . | . . . . Hottest . | . . . . Shots Fired . | . . . . Gun . | . . . . Cannon . | . . . . Launcher . | . . . . Special . | . . . . Kinetic . | . . . . Thermal . | . . . . Explosive . | . . . . Electromagnetic . | . . . . Robot Hit Streak . | . . . . Robot Miss Streak . | . . . . Penetration Max . | . . . . Secondary Targets . | . . . . Shots Hit Robots 28 | . 3 18 7 Core Hits 3 | . 3 . . Critical Kills . | . . . . Critical Parts Destroyed . | . . . . Critical Strikes . | . . . . Melee Attacks 29 | . 4 18 7 Impact 25 | . . 18 7 Slashing 4 | . 4 . . Piercing . | . . . . Sneak Attacks 1 | . . 1 . Combat Hostiles . | . . . . Follow-up Attacks . | . . . . Damage Inflicted 716 | . 75 463 178 Guns . | . . . . Cannons . | . . . . Explosions . | . . . . Melee 712 | . 71 463 178 Ramming 4 | . 4 . . Kinetic . | . . . . Thermal . | . . . . Explosive . | . . . . Electromagnetic . | . . . . Impact 641 | . . 463 178 Slashing 71 | . 71 . . Piercing . | . . . . Highest Corruption . | . . . . Average Corruption . | . . . . Corruption Purged . | . . . . Overload Shots . | . . . . Overflow Damage 120 | . . 99 21 Projectiles . | . . . . Explosions . | . . . . Melee 120 | . . 99 21 Knockbacks . | . . . . Impact . | . . . . Kinetic . | . . . . Secondary . | . . . . Self-Inflicted Damage 2 | . 2 . . Shots . | . . . . Rammed 1 | . 1 . . Targets Rammed 1 | . 1 . . Kicked . | . . . . Crushed . | . . . . Highest Temperature 2 | . 2 . . Average Temperature 2 | . 2 . . Received Heat Transfer 375 | . 141 108 126 Siege Activations . | . . . . Robots Corrupted . | . . . . Combat Hostiles . | . . . . Parts Fried . | . . . . Impact Corruptions 3 | . . 2 1 Robots Melted . | . . . . Combat Hostiles . | . . . . Parts Melted . | . . . . Heat Transferred . | . . . . Parts Sabotaged . | . . . . Parts Stolen . | . . . . Parts Stripped . | . . . . Power Chain Reactions . | . . . . Missiles Intercepted . | . . . . Alert | -11 -10 -9 -8 ------- Run | Scr Mat Mat Mat Peak Influence 80 | . 80 39 26 Initial 24 | . . 24 11 Average 27 | . 33 30 16 Maximum Alert Level . | . . . . Low Security (%) 100 | 100 100 100 100 Level 1 . | . . . . Level 2 . | . . . . Level 3 . | . . . . Level 4 . | . . . . Level 5 . | . . . . High Security . | . . . . Max Security . | . . . . Squads Dispatched 2 | . . . 2 Investigation 1 | . . . 1 Extermination . | . . . . Reinforcement 1 | . . . 1 Assault . | . . . . Garrison . | . . . . Intercept . | . . . . Construction Impeded . | . . . . Haulers Reinforced . | . . . . Active Scanning Responses . | . . . . Cargo Convoy Interrupts . | . . . . Stealth | -11 -10 -9 -8 --------- Run | Scr Mat Mat Mat Distress Signals . | . . . . Communications Jammed . | . . . . Distress Signals . | . . . . Times Spotted 14 | . 4 4 6 Peak Tracking Total 6 | . 4 3 6 Tactical Retreats . | . . . . Traps | -11 -10 -9 -8 ------- Run | Scr Mat Mat Mat Traps Triggered . | . . . . Indirectly . | . . . . Trap Hack Attempts . | . . . . Triggered . | . . . . Disarmed . | . . . . Reprogrammed . | . . . . Reused . | . . . . Traps Extracted . | . . . . Installed . | . . . . Triggered . | . . . . Machines | -11 -10 -9 -8 ---------- Run | Scr Mat Mat Mat Machines Disabled . | . . . . Max in Single Turn . | . . . . Machines Sabotaged . | . . . . Garrisons Compromised . | . . . . Overloaded Fab Kills . | . . . . Hacking | -11 -10 -9 -8 --------- Run | Scr Mat Mat Mat Machines Accessed 2 | . . 1 1 Terminals 2 | . . 1 1 Fabricators . | . . . . Repair Stations . | . . . . Recycling Units . | . . . . Scanalyzers . | . . . . Garrison Access . | . . . . Total Hacks 5 | . . 3 2 Successful . | . . . . Failed 5 | . . 3 2 Catastrophic 1 | . . 1 . Database Lockouts . | . . . . Manual 5 | . . 3 2 Terminals 5 | . . 3 2 Fabricators . | . . . . Repair Stations . | . . . . Recycling Units . | . . . . Scanalyzers . | . . . . Garrison Access . | . . . . Terminal Hacks . | . . . . Fabricator Hacks . | . . . . Repair Station Hacks . | . . . . Recycling Unit Hacks . | . . . . Scanalyzer . | . . . . Garrison Access Hacks . | . . . . Unauthorized Hacks . | . . . . Terminals . | . . . . Fabricators . | . . . . Repair Stations . | . . . . Recycling Units . | . . . . Scanalyzers . | . . . . Garrison Access . | . . . . Data Cores Recovered . | . . . . Used . | . . . . Hacking Detections 2 | . . 1 1 Full Trace Events 1 | . . . 1 Feedback Events . | . . . . Feedback Blocked . | . . . . Robot Schematics Acquired . | . . . . Robots Built . | . . . . Authchips . | . . . . Time . | . . . . Total Robot Build Rating . | . . . . Part Schematics Acquired . | . . . . Parts Built . | . . . . Authchips . | . . . . Time . | . . . . Total Part Build Rating . | . . . . Parts Repaired . | . . . . Time . | . . . . Parts Recycled . | . . . . Recycled Matter . | . . . . Retrieved Matter . | . . . . Retrieved Components . | . . . . Parts Scanalyzed . | . . . . Part Schematics Acquired . | . . . . Parts Damaged . | . . . . Bothacking | -11 -10 -9 -8 ------------ Run | Scr Mat Mat Mat Used RIF Installer . | . . . . Robots Hacked . | . . . . Non-combat . | . . . . Combat . | . . . . Robot Hacks Applied . | . . . . Relay Couplers Released . | . . . . Robots Rewired . | . . . . Allies Hacked . | . . . . Hacks Repelled . | . . . . Allies | -11 -10 -9 -8 -------- Run | Scr Mat Mat Mat Total Allies . | . . . . Largest Group . | . . . . Highest-Rated Group . | . . . . Highest-Rated Ally . | . . . . Total Orders . | . . . . Ally Attacks . | . . . . Total Damage . | . . . . Kills . | . . . . Allies Corrupted . | . . . . Allies Melted . | . . . . Intel | -11 -10 -9 -8 ------- Run | Scr Mat Mat Mat Robot Analysis Total . | . . . . Derelict Logs Recovered . | . . . . Drone Launches . | . . . . Drone Recoveries . | . . . . Exploration | -11 -10 -9 -8 ------------- Run | Scr Mat Mat Mat Turns Passed 285 | 10 41 181 53 Spaces Moved 388 | 20 52 249 67 Core 388 | 20 52 249 67 Treads . | . . . . Legs . | . . . . Wheels . | . . . . Hover . | . . . . Flight . | . . . . Fastest Speed 50 | 50 50 50 50 Average Speed 50 | 50 50 50 50 Slowest Speed 50 | 50 50 50 50 Overloaded Moves . | . . . . Propulsion Burnouts . | . . . . Robots Hopped . | . . . . Cave-ins Triggered . | . . . . Exploration Rate (%) 16 | 3 13 36 14 Regions Visited 3 Branch Regions . Pre-discovered Areas . | . . . . Known Exits Taken 3 | 1 1 1 . Unknown Exits Taken . | . . . . Scrap Searched . | . . . . Spaces Dug . | . . . . Terrain Destroyed . | . . . . Melee . | . . . . Projectile . | . . . . AOE . | . . . . Terrain Rammed . | . . . . Walls Destroyed . | . . . . Machines Disabled . | . . . . Actions | -11 -10 -9 -8 --------- Run | Scr Mat Mat Mat Total 418 | 19 57 268 74 Wait . | . . . . Move 385 | 19 51 248 67 Hop . | . . . . Pick Up . | . . . . Fast Attach 2 | . 1 1 . Attach . | . . . . Detach . | . . . . Swap . | . . . . Drop 1 | . . 1 . Fire . | . . . . Melee 29 | . 4 18 7 Ram 1 | . 1 . . Kick . | . . . . Crush . | . . . . Escape Stasis . | . . . . Rewire . | . . . . Trap . | . . . . Miscellaneous . | . . . . Route ------- -11/Scrapyard -10/Materials -9/Materials -8/Materials History --------- Turn | Location | Event 3 | -11/Scrapyard | Identified exit to Materials 3 | -11/Scrapyard | Discovered exit to Materials (range 15) 11 | -11/Scrapyard | Entered Materials 22 | -10/Materials | Identified exit to Materials 22 | -10/Materials | Discovered exit to Materials (range 11) 52 | -10/Materials | Entered another Materials area 54 | -9/Materials | Reached level 2 54 | -9/Materials | Reached level 3 187 | -9/Materials | Core integrity fell below 50% 227 | -9/Materials | Identified exit to Materials 227 | -9/Materials | Discovered exit to Materials (range 10) 233 | -9/Materials | Entered another Materials area 234 | -8/Materials | Core integrity fell below 50% 235 | -8/Materials | Reached level 4 235 | -8/Materials | Reached level 5 235 | -8/Materials | Reached level 6 279 | -8/Materials | Core integrity fell below 20% 286 | -8/Materials | Destroyed by H-55 Commando with Gauss Rifle Last Messages --------------- 00235_ Reached level 6. 00246_ Connecting with Terminal... 00246_ ALERT: Suspicious activity at Terminal M012. Dispatching Investigation squad. 00265_ O-16 Technician: "IFF HANDSHAKE FAILED. SECURING TERMINAL." 00267_ O-16 Technician uses terminal to summon reinforcements. 00267_ ALERT: Hostiles spotted, dispatching reinforcements to Terminal M001. 00267_ O-16 Technician locks terminal. 00272_ K-01 Serf collects debris. 00277_ Penetrated by Slug. 00279_ K-01 Serf collects debris. 00279_ Destroyed Imp. Heat Sink. 00279_ G-47 Trooper system corrupted by crushing effect. 00280_ K-01 Serf collects debris. 00280_ Penetrated by Slug. 00283_ K-01 Serf collects debris. 00283_ Penetrated by Slug. 00283_ K-01 Serf collects debris. 00286_ Penetrated by Slug. Map ----- +----------------------------------------------------+ | ?????????????????????????????????????????????????? | | ?????????????????????????????????????????????????? | | ?????????????????????????????????????????????????? | | ?????????????????????????????????????????????????? | | ?????????????????????????????????????????????????? | | ?????????????????????????????????????????????????? | | ?????????????????????????????????????????????????? | | ?????????????????????????????????????????????????? | | ?????????????????????????????????????????????????? | | ?????????????????????????????????????????????????? | | ?????????????????????????????????????????????????? | | ?????????????????????????????????????????????????? | | ?????????????????????????????????????????????????? | | ?????????????????????????????????????????????????? | | ?????????????????????????????????????????????????? | | ?????????????????????????????????????????????????? | | ?????????????? ????????????????????????????????? | | ????????????? ???????????????????????????????? | | ????????????? ???????????????????????????????? | | ???????????? ???????? ????????????????????? | | ???????????? ??????"Y"????????????????????? | | ???????????? ?????"""????????????????????? | | ???????????# ! ???? ????????????????????? | | ???????????# ?###+###???????*#?????????? | | ???????????# ##g #???? #?????????? | | ???????????# k o uh @T" ### #?????????? | | ???????????# "T" " ??????????? | | ???????????????? """ w gk ######?????????????? | | ?????????????????# # ! #??????????????????? | | ?????????????????# ### ###??????????????????? | | ?????????????????#!!!!=???# #????????????????????? | | ?????????????????#!!!!=???#w#????????????????????? | | ?????????????????#####????# #????????????????????? | | ??????????????????????????# #????????????????????? | | ??????????????????????????# #????????????????????? | | ??????????????????????????# #????????????????????? | | ??????????????????????????# #????????????????????? | | ??????????????????????????# #????????????????????? | | ?????????????????????######+####?????????????????? | | ?????????????????????+ + #?????????????????? | | ?????????????????????## # #?????????????????? | | ??????????????????????# # #?????????????????? | | ??????????????????????# # ! #?????????????????? | | ??????????????????????# # #?????????????????? | | ??????????????????????# # #?????????????????? | | ??????????????????????# # #?????????????????? | | ?????????????###+###### # #?????????????????? | | ?????????????# # ! #?????????????????? | | ?????????????# # !#?????????????????? | | ?????????????# + #?????????????????? | +----------------------------------------------------+ Best States ------------- Heat Dissipation 25 Energy Generation 5 Energy Capacity 100 Matter Stores 100 Matter Capacity 300 Sight Range 16 Terrain Scan Density 10 Resistance: KI 35 Resistance: TH 35 Resistance: EX 35 Resistance: EM 35 Resistance: I 35 Resistance: S 35 Resistance: P 35 Evasion (%) 50 Offensive Hacking 20 Item Schematics ----------------- None Robot Schematics ------------------ None Fabricated ------------ Nothing Alien Tech Used ----------------- None Achievements -------------- None Challenges ------------ None RPGLIKE | -11 -10 -9 -8 --------- Run | Scr Mat Mat Mat Levels Raised 5 | . . 2 3 XP Earned 13821 | 6000 250 3292 4279 Upgrades . | . . . . Protomatter Created . | . . . . Protomatter Decayed . | . . . . Game ------ Seed GravmagGravmagAnalyzer Manual? 0 Play Time 00:03:53 Cumulative 341.2 hours Start 2021.10.27 @ 14:01:16 End 2021.10.27 @ 14:04:33 Sessions 1 Manual Loads 0 Difficulty Explorer Special Mode Winter2019/RPGLIKE Game No. 106 Rogue 0 Adventurer 0 Explorer 106 Win Type - Total 26 Types 15/3/1/1/1/2/1/2/0 Lore% 71 Gallery% 86 Achievement% 81 Wizard Run 0 Options --------- ASCII 1 Keyboard 0 Movement Vi Keybinds 0 Fullscreen 2 Font 18/X11Bold Map View 76x50 Tactical HUD 1 Map Filters NONE Filters NONE Steam 1 RUN: 0326b303-87a1-4190-91ae-e061a79d562f